bitfinex/quotes_SOLUSD_20241115
["timestamp","ask_amount","ask_price","bid_price","bid_amount"]
[1731707510127,0.1,219.04,218.96,26.05994804]
[1731707510316,0.1,219.04,218.96,2.28306404]
[1731707510813,4.5664,218.99,218.91,23.776884]
[1731707511120,13.80701712,218.92,218.87,2.2068327]
[1731707511324,13.80701712,218.88,218.84,4.5694]
[1731707511515,0.09367462,218.98,218.88,2.2834817]
[1731707511711,0.09367462,218.98,218.84,4.5694]
[1731707511712,12.8346,219.03,218.85,30.19271899]
[1731707511915,5.1063,219.0,218.89,6.80163744]
[1731707512331,0.09367462,218.99,218.89,6.80163744]
[1731707512517,4.66017462,218.99,218.89,6.80163744]
[1731707512837,0.12549,218.98,218.89,6.80163744]
[1731707513339,13.93250712,218.98,218.89,11.36993744]
[1731707513640,13.80701712,218.94,218.89,11.36993744]
[1731707513936,13.80701712,218.95,218.89,6.80163744]
[1731707514539,13.80701712,218.96,218.89,30.6324638]
[1731707515245,13.80701712,218.94,218.89,25.15075541]
[1731707515720,0.09367462,218.99,218.89,25.15075541]
[1731707515921,13.80701712,218.96,218.9,23.776884]
[1731707516126,0.12549,218.99,218.9,23.776884]
[1731707516422,0.54,219.0,218.91,7.24941522]
[1731707516619,4.5664,218.99,218.9,13.80701712]
[1731707516930,13.80701712,218.98,218.89,15.9897]
[1731707517139,0.54,219.0,218.9,23.776884]
[1731707517339,13.80701712,218.98,218.91,0.21916462]
[1731707517541,13.80701712,218.99,218.9,37.58390112]
[1731707517838,0.54,219.0,218.95,13.80701712]
[1731707518342,0.54,219.0,218.98,13.80701712]
[1731707518840,0.54,219.0,218.99,23.776884]
[1731707521850,0.54,219.0,218.99,23.876884]
[1731707522015,0.54,219.0,218.97,23.776884]
[1731707522215,0.54,219.0,218.97,37.58390112]
[1731707522422,0.54,219.0,218.97,23.776884]
[1731707522633,0.54,219.0,218.99,23.776884]
[1731707523249,5.1064,219.0,218.89,31.6508]
[1731707523450,13.80701712,218.97,218.89,31.6508]
[1731707523627,0.54,219.0,218.91,13.80701712]
[1731707523822,18.51125553,219.0,218.91,13.80701712]
[1731707524049,0.13793841,219.0,218.94,13.80701712]
[1731707524240,0.13793841,219.0,218.98,13.80701712]
[1731707524421,0.13793841,219.0,218.99,51.01676915]
[1731707524754,0.13793841,219.0,218.99,64.12361655]
[1731707525047,0.13793841,219.0,218.99,77.93063367]
[1731707525247,27.77509501,219.12,219.02,0.09367462]
[1731707525545,23.21129501,219.12,219.08,13.80701712]
[1731707525723,23.21129501,219.12,219.1,13.80701712]
[1731707526141,43.21129501,219.12,219.11,23.776884]
[1731707526591,43.21129501,219.12,219.04,0.21916462]
[1731707526592,43.21129501,219.12,219.09,23.776884]
[1731707526851,43.21129501,219.12,219.1,13.80701712]
[1731707527436,43.21129501,219.12,219.1,20.66015437]
[1731707527646,23.21129501,219.12,219.1,20.66015437]
[1731707527846,23.21129501,219.12,219.1,26.56981852]
[1731707528028,23.21129501,219.12,219.11,12.98669029]
[1731707528346,13.80701712,219.23,219.12,7.19908354]
[1731707528647,4.6612,219.24,219.19,13.80701712]
[1731707528941,4.5612,219.24,219.19,13.80701712]
[1731707529146,4.5608,219.26,219.21,13.80701712]
[1731707529331,4.5595,219.32,219.25,13.80701712]
[1731707529743,4.559,219.35,219.27,13.80701712]
[1731707529960,4.559,219.35,219.21,7.06711378]
[1731707529961,0.3775213,219.32,219.28,7.28378045]
[1731707530955,0.3775213,219.32,219.29,23.776884]
[1731707531159,0.3775213,219.32,219.26,21.9505871]
[1731707531450,0.3775213,219.32,219.19,11.4054]
[1731707531451,0.3775213,219.32,219.28,21.9505871]
[1731707531645,0.3775213,219.32,219.3,21.9505871]
[1731707532643,0.3775213,219.32,219.31,45.7274711]
[1731707533458,5.1,219.47,219.4,21.9505871]
[1731707533459,4.5566,219.46,219.4,21.9505871]
[1731707533659,4.5566,219.46,219.42,21.9505871]
[1731707533965,4.5566,219.46,219.44,21.9505871]
[1731707534135,4.5566,219.46,219.42,21.9505871]
[1731707534336,21.9505871,219.45,219.37,21.9505871]
[1731707534560,4.5566,219.46,219.39,21.9505871]
[1731707535060,0.34465462,219.45,219.39,21.9505871]
[1731707535658,4.557,219.44,219.39,21.9505871]
[1731707535857,4.557,219.44,219.43,21.9505871]
[1731707536567,20.34465462,219.43,219.35,21.9505871]
[1731707536857,21.9505871,219.37,219.28,21.9505871]
[1731707537160,20.0,219.38,219.32,21.9505871]
[1731707537345,20.0,219.38,219.23,37.9152871]
[1731707537346,0.09367462,219.37,219.3,21.9505871]
[1731707537655,0.34465462,219.31,219.21,21.9505871]
[1731707537858,21.9505871,219.3,219.21,21.9505871]
[1731707538065,21.9505871,219.3,219.17,15.9691]
[1731707538066,20.0,219.35,219.28,21.9505871]
[1731707538240,0.35098,219.35,219.28,21.9505871]
[1731707538442,0.09367462,219.32,219.24,21.9505871]
[1731707538642,20.09367462,219.32,219.24,21.9505871]
[1731707538862,0.09367462,219.32,219.26,21.9505871]
[1731707539866,4.5597,219.31,219.26,21.9505871]
[1731707540075,4.68349,219.39,219.28,21.9505871]
[1731707540363,21.9505871,219.35,219.26,21.9505871]
[1731707540580,21.9505871,219.29,219.2,21.9505871]
[1731707540764,21.9505871,219.27,219.2,21.9505871]
[1731707541356,21.9505871,219.25,219.18,21.9505871]
[1731707541559,21.9505871,219.23,219.16,21.9505871]
[1731707541759,21.9505871,219.21,219.17,2.28054159]
[1731707541944,21.9505871,219.19,219.13,2.17724332]
[1731707542145,0.1,219.19,219.14,2.28071671]
[1731707542344,0.34465462,219.18,219.08,2.17724332]
[1731707542543,0.34465462,219.18,218.94,26.25788094]
[1731707542544,21.9505871,219.1,219.09,2.28136187]
[1731707542849,0.1,219.12,219.04,2.18406752]
[1731707543049,21.9505871,219.06,218.99,11.4155]
[1731707543452,21.9505871,219.06,218.99,18.16596752]
[1731707543761,21.9505871,219.1,219.02,21.9505871]
[1731707543955,4.5626,219.17,219.08,21.9505871]
[1731707544163,0.25098,219.16,219.1,21.9505871]
[1731707545356,26.5124871,219.21,219.12,21.9505871]
[1731707545560,26.5124871,219.21,219.06,18.16126752]
[1731707545561,21.9505871,219.2,219.1,21.9505871]
[1731707546075,21.9505871,219.2,219.12,21.9505871]
[1731707546770,21.9505871,219.18,219.11,4.5638]
[1731707546962,21.9505871,219.16,219.11,4.5638]
[1731707547151,0.25098,219.2,219.11,4.5638]
[1731707547152,21.9505871,219.19,219.11,4.5638]
[1731707547352,21.9505871,219.19,219.11,26.5143871]
[1731707547767,4.5612,219.24,219.17,21.9505871]
[1731707548146,21.9505871,219.25,219.17,21.9505871]
[1731707548353,13.1811,219.29,219.21,21.9505871]
[1731707548354,21.9505871,219.29,219.21,21.9505871]
[1731707549048,21.9505871,219.26,219.18,27.07185422]
[1731707549248,21.9505871,219.28,219.2,21.9505871]
[1731707549457,21.9505871,219.28,219.21,2.28060324]
[1731707549648,21.9505871,219.28,219.22,2.28060324]
[1731707549858,21.9505871,219.28,219.21,4.5617]
[1731707550166,4.56,219.3,219.19,2.19201714]
[1731707550167,22.29524172,219.23,219.22,2.28038541]
[1731707550345,20.34465462,219.22,219.14,2.19201714]
[1731707550548,21.9505871,219.15,219.09,4.5642]
[1731707550749,21.9505871,219.15,219.13,2.20283333]
[1731707550949,0.09367462,219.21,219.13,2.20283333]
[1731707551247,20.25098,219.22,219.13,2.20283333]
[1731707551448,0.34465462,219.23,219.13,2.20283333]
[1731707551653,4.5616,219.22,219.13,2.20283333]
[1731707551973,21.9505871,219.18,219.13,2.20283333]
[1731707552343,22.2015671,219.21,219.14,2.20283333]
[1731707552548,22.2015671,219.21,219.15,2.20283333]
[1731707553164,0.09367462,219.2,219.15,2.20718978]
[1731707553346,0.09367462,219.2,219.16,2.20718978]
[1731707553347,22.29524172,219.17,219.16,2.20718978]
[1731707553546,0.25098,219.16,219.14,2.20718978]
[1731707553860,21.9505871,219.15,219.13,2.20718978]
[1731707554057,5.62144489,219.15,219.13,2.20718978]
[1731707554258,5.62144489,219.15,219.08,21.9505871]
[1731707554259,0.12549,219.14,219.08,24.15777688]
[1731707554566,20.25098,219.13,219.06,24.15777688]
[1731707554771,20.25098,219.13,219.07,2.20718978]
[1731707555077,4.5637,219.12,219.06,21.9505871]
[1731707556060,0.09367462,219.06,219.02,2.20718978]
[1731707556253,22.2015671,219.03,219.01,2.20718978]
[1731707556476,0.09367462,219.0,218.89,4.5684]
[1731707556680,21.9505871,218.97,218.9,21.9505871]
[1731707556861,21.9505871,218.97,218.95,2.21867037]
[1731707557049,21.9505871,218.97,218.93,2.21867037]
[1731707557254,4.567,218.96,218.92,2.21867037]
[1731707557455,4.567,218.96,218.88,21.9505871]
[1731707558385,24.567,218.96,218.88,21.9505871]
[1731707558955,21.9505871,219.0,218.87,15.991]
[1731707559172,21.9505871,218.96,218.88,21.9505871]
[1731707559368,21.9505871,218.96,218.79,22.0505871]
[1731707559369,21.9505871,218.94,218.86,21.9505871]
[1731707559561,0.25098,218.93,218.86,21.9505871]
[1731707559758,0.35098,218.97,218.86,21.9505871]
[1731707560079,0.35098,218.97,218.8,11.4254]
[1731707560080,20.0,218.98,218.92,21.9505871]
[1731707560779,21.9505871,219.03,218.94,21.9505871]
[1731707561077,4.5656,219.03,218.96,21.9505871]
[1731707561266,26.5157871,219.05,218.98,21.9505871]
[1731707561463,4.5652,219.05,218.98,21.9505871]
[1731707562080,21.9505871,219.07,219.0,21.9505871]
[1731707562377,12.2344,219.12,219.04,21.9505871]
[1731707562557,4.5634,219.14,219.06,21.9505871]
[1731707562764,35.72993181,219.18,219.1,35.72993181]
[1731707564117,4.5626,219.17,219.1,35.72993181]
[1731707564270,35.72993181,219.14,219.06,35.72993181]
[1731707564574,35.72993181,219.1,219.02,11.4144]
[1731707565158,35.72993181,219.08,219.02,11.4144]
[1731707565879,40.29453181,219.08,219.0,40.29603181]
[1731707566483,40.29453181,219.08,219.0,35.72993181]
[1731707566665,20.0,219.07,218.98,40.29643181]
[1731707566977,35.72993181,219.06,218.98,35.72993181]
[1731707567189,35.72993181,219.04,218.96,35.72993181]
[1731707567365,35.72993181,219.01,218.94,35.72993181]
[1731707567984,40.29603181,219.01,218.94,35.72993181]
[1731707568200,0.25098,219.0,218.94,35.72993181]
[1731707568393,0.25098,219.0,218.92,51.71723181]
[1731707568688,40.29603181,219.01,218.92,47.14943181]
[1731707568978,0.25098,219.0,218.92,47.14943181]
[1731707569972,35.72993181,218.97,218.9,35.72993181]
[1731707570178,35.72993181,218.99,218.9,35.72993181]
[1731707570380,4.81728,219.0,218.92,35.72993181]
[1731707571062,0.12549,218.98,218.92,35.72993181]
[1731707571265,0.25098,218.98,218.92,35.72993181]
[1731707571564,20.0,219.03,218.97,35.72993181]
[1731707571987,24.5656,219.03,218.97,35.72993181]
[1731707572562,24.5656,219.03,218.95,35.72993181]
[1731707572758,24.5656,219.03,218.9,11.4204]
[1731707572759,0.25098,218.97,218.9,11.4204]
[1731707573070,35.72993181,218.96,218.89,35.72993181]
[1731707573281,0.25098,218.95,218.88,4.5686]
[1731707573782,35.72993181,218.96,218.89,35.72993181]
[1731707574160,35.72993181,218.96,218.85,35.72993181]
[1731707574161,0.25098,218.93,218.85,35.72993181]
[1731707574376,35.72993181,218.92,218.83,51.72383181]
[1731707575377,0.25098,218.93,218.87,35.72993181]
[1731707575875,4.81868,218.93,218.85,35.72993181]
[1731707576074,4.81868,218.93,218.87,35.72993181]
[1731707576283,0.25098,218.93,218.89,35.72993181]
[1731707576659,0.25098,218.93,218.83,15.9939]
[1731707576660,40.54861181,218.93,218.83,15.9939]
[1731707576869,40.54861181,218.93,218.84,35.72993181]
[1731707577388,40.54861181,218.93,218.85,4.5693]
[1731707577981,40.54861181,218.93,218.84,35.72993181]
[1731707578284,40.54861181,218.93,218.83,15.9938]
[1731707578468,35.72993181,218.91,218.83,15.9938]
[1731707578982,0.25098,218.9,218.83,15.9938]
[1731707579191,0.25098,218.9,218.83,11.4242]
[1731707579384,4.81928,218.9,218.83,11.4242]
[1731707580567,35.72993181,218.87,218.78,51.72703181]
[1731707580894,35.82360643,218.85,218.78,35.72993181]
[1731707581095,0.25098,218.82,218.76,35.72993181]
[1731707581586,0.25098,218.82,218.74,5.0228985]
[1731707581587,0.25098,218.82,218.74,40.75283031]
[1731707581885,20.25098,218.84,218.78,35.72993181]
[1731707582188,0.09367462,218.83,218.78,35.72993181]
[1731707582373,0.25098,218.82,218.76,35.72993181]
[1731707582581,0.25098,218.82,218.74,52.18183031]
[1731707582776,0.25098,218.83,218.77,35.72993181]
[1731707583186,40.29883181,218.87,218.79,35.72993181]
[1731707583367,0.12549,218.86,218.74,16.4518985]
[1731707583572,4.5689,218.87,218.81,35.72993181]
[1731707583773,13.296,218.89,218.85,35.72993181]
[1731707583991,31.9757,218.92,218.85,35.72993181]
[1731707584193,35.72993181,218.95,218.85,35.72993181]
[1731707584488,40.29653181,218.98,218.9,35.72993181]
[1731707584797,35.72993181,218.94,218.87,11.422]
[1731707584976,35.72993181,218.94,218.88,35.72993181]
[1731707585292,35.72993181,218.94,218.87,15.9909]
[1731707585485,4.5671,218.96,218.84,35.72993181]
[1731707585486,35.72993181,218.92,218.84,35.72993181]
[1731707585677,35.72993181,218.91,218.84,40.29933181]
[1731707585993,35.72993181,218.9,218.84,4.5694]
[1731707586191,4.5671,218.96,218.84,40.29933181]
[1731707586384,4.5671,218.96,218.84,4.5694]
[1731707586571,4.5667,218.98,218.84,15.9932]
[1731707586779,4.5667,218.98,218.9,40.29813181]
[1731707587502,35.82993181,219.03,218.94,35.72993181]
[1731707587794,35.72993181,218.97,218.88,51.72003181]
[1731707588002,0.09367462,218.98,218.9,35.72993181]
[1731707588189,35.72993181,218.99,218.9,35.72993181]
[1731707588691,4.5654,219.04,218.96,35.72993181]
[1731707588892,30.9476,219.07,218.9,35.72993181]
[1731707588893,30.8476,219.07,218.98,35.72993181]
[1731707589191,4.565,219.06,219.0,35.72993181]
[1731707589375,30.8476,219.07,219.0,35.72993181]
[1731707589570,4.5648,219.07,219.0,35.72993181]
[1731707590171,4.5624,219.18,219.06,35.72993181]
[1731707590392,4.5624,219.18,219.01,35.72993181]
[1731707590393,35.72993181,219.17,219.08,35.72993181]
[1731707590694,35.72993181,219.17,218.96,12.7353]
[1731707590695,35.72993181,219.11,219.02,35.72993181]
[1731707590995,40.29383181,219.11,219.02,40.29553181]
[1731707591470,35.72993181,219.07,219.0,11.4151]
[1731707591671,0.09367462,219.1,218.95,11.4179]
[1731707591672,35.72993181,219.01,218.95,11.4179]
[1731707591873,35.72993181,219.04,218.95,47.14783181]
[1731707592685,35.72993181,219.06,218.97,35.72993181]
[1731707592991,0.25098,219.05,218.97,40.29663181]
[1731707593379,4.5642,219.1,219.03,35.72993181]
[1731707594267,20.0,219.11,219.03,35.72993181]
[1731707594474,0.1,219.14,218.97,15.9837]
[1731707594475,4.5634,219.14,219.07,35.72993181]
[1731707594672,35.72993181,219.16,219.07,35.72993181]
[1731707594891,40.29293181,219.16,219.07,35.72993181]
[1731707595786,20.0,219.15,219.09,35.72993181]
[1731707595990,0.09367462,219.15,219.06,4.5648]
[1731707596292,0.34465462,219.15,219.06,4.5648]
[1731707596493,20.34465462,219.15,219.07,35.72993181]
[1731707596674,20.34465462,219.15,219.09,35.72993181]
[1731707596874,24.90785462,219.15,219.09,35.72993181]
[1731707597782,35.72993181,219.2,219.13,35.72993181]
[1731707598300,35.72993181,219.18,219.11,35.72993181]
[1731707598475,35.72993181,219.18,219.09,35.72993181]
[1731707598675,35.72993181,219.15,219.07,35.72993181]
[1731707598900,35.72993181,219.15,219.05,11.4129]
[1731707599075,35.72993181,219.15,219.07,35.72993181]
[1731707599076,0.25098,219.13,219.07,35.72993181]
[1731707599284,0.25098,219.13,218.98,23.776884]
[1731707599285,35.98091181,219.13,218.99,0.1]
[1731707599484,35.98091181,219.13,218.98,23.776884]
[1731707599786,35.98091181,219.13,219.04,35.72993181]
[1731707600604,0.1,219.22,219.11,35.72993181]
[1731707600780,35.72993181,219.2,219.11,35.72993181]
[1731707600980,0.09367462,219.19,219.11,35.72993181]
[1731707601198,0.09367462,219.19,219.15,35.72993181]
[1731707601404,0.09367462,219.19,219.14,35.72993181]
[1731707601692,0.09367462,219.18,219.14,35.72993181]
[1731707601905,0.34465462,219.18,219.12,35.72993181]
[1731707602404,0.34465462,219.18,219.09,4.5641]
[1731707602405,4.5619,219.21,219.14,35.72993181]
[1731707602775,0.09367462,219.2,219.12,35.72993181]
[1731707602976,0.09367462,219.2,219.14,35.72993181]
[1731707603205,35.82360643,219.2,219.11,35.72993181]
[1731707603580,0.25098,219.19,219.09,11.4108]
[1731707603774,4.81318,219.19,219.11,35.72993181]
[1731707604504,0.09367462,219.18,219.11,35.72993181]
[1731707604799,0.25098,219.17,219.11,35.72993181]
[1731707605292,0.25098,219.15,219.09,11.4108]
[1731707605697,0.25098,219.13,219.05,35.72993181]
[1731707606000,0.25098,219.11,219.05,35.72993181]
[1731707607104,0.25098,219.11,219.04,15.9782]
[1731707607105,0.25098,219.11,219.04,11.4129]
[1731707607298,35.72993181,219.1,219.04,11.4129]
[1731707607497,0.25098,219.09,219.04,11.4129]
[1731707607796,35.72993181,219.06,218.99,11.4155]
[1731707608104,0.25098,219.05,218.99,11.4155]
[1731707608306,35.72993181,219.08,218.99,51.71183181]
[1731707608483,0.25098,219.07,218.99,51.71183181]
[1731707608788,35.72993181,219.0,218.93,35.72993181]
[1731707608982,12.682,219.06,218.95,35.72993181]
[1731707608983,35.72993181,219.03,218.95,35.72993181]
[1731707609381,35.72993181,219.03,218.93,35.72993181]
[1731707609681,35.72993181,219.0,218.91,35.72993181]
[1731707609887,0.25098,219.06,218.98,35.72993181]
[1731707610106,35.98091181,219.06,218.98,35.72993181]
[1731707610888,35.98091181,219.06,218.99,4.5664]
[1731707611210,35.72993181,219.06,218.99,4.5664]
[1731707611792,0.25098,219.07,219.02,35.72993181]
[1731707612305,0.25098,219.07,219.0,35.72993181]
[1731707612894,0.25098,219.07,219.0,40.29593181]
[1731707614816,4.5614,219.23,219.08,0.1]
[1731707615006,21.99210876,219.21,219.13,21.99210876]
[1731707615995,21.99210876,219.21,219.14,4.5632]
[1731707616391,0.25098,219.22,219.14,4.5632]
[1731707616815,0.25098,219.22,219.14,40.28037718]
[1731707617191,0.25098,219.22,219.14,51.68857718]
[1731707617820,0.25098,219.2,219.14,47.12537718]
[1731707618120,35.71717718,219.33,219.19,35.81717718]
[1731707618294,4.6250028,219.34,219.25,35.71717718]
[1731707618918,0.09367462,219.33,219.25,35.71717718]
[1731707619293,0.25098,219.33,219.27,35.71717718]
[1731707619802,28.587364,219.33,219.25,35.71717718]
[1731707620615,0.34465462,219.32,219.25,35.71717718]
[1731707620818,28.68113862,219.32,219.25,35.71717718]
[1731707621328,4.90425462,219.32,219.27,35.71717718]
[1731707621510,0.34465462,219.32,219.29,35.71717718]
[1731707621707,0.12549,219.32,219.29,35.71717718]
[1731707622103,0.12549,219.32,219.27,35.71717718]
[1731707623622,0.0659028,219.34,219.3,35.71717718]
[1731707623832,4.1244028,219.37,219.3,35.71717718]
[1731707624203,0.09367462,219.36,219.3,35.71717718]
[1731707624810,0.09367462,219.35,219.25,4.5609]
[1731707625006,35.71717718,219.29,219.21,47.12127718]
[1731707626015,35.71717718,219.29,219.21,51.68307718]
[1731707626318,35.71717718,219.27,219.21,11.4041]
[1731707626497,35.21717718,219.27,219.18,4.5623]
[1731707626699,35.71717718,219.31,219.23,35.71717718]
[1731707627625,35.71717718,219.29,219.21,35.71717718]
[1731707627830,35.71717718,219.39,219.29,35.71717718]
[1731707628008,35.71717718,219.41,219.32,35.71717718]
[1731707628322,0.09367462,219.4,219.32,35.71717718]
[1731707628511,35.71717718,219.42,219.34,35.71717718]
[1731707629013,0.09367462,219.39,219.34,35.71717718]
[1731707629332,4.5578,219.4,219.34,35.71717718]
[1731707630026,0.21916462,219.39,219.34,35.71717718]
[1731707631205,4.65187462,219.39,219.34,35.71717718]
[1731707631405,0.09367462,219.38,219.34,35.71717718]
[1731707631827,0.09367462,219.38,219.32,35.71717718]
[1731707632230,0.09367462,219.38,219.34,35.71717718]
[1731707632802,0.09367462,219.39,219.32,35.71717718]
[1731707633130,0.09367462,219.35,219.28,35.71717718]
[1731707633335,0.09367462,219.31,219.24,35.71717718]
[1731707633533,0.21916462,219.31,219.23,11.4033]
[1731707633706,0.21916462,219.29,219.22,35.71717718]
[1731707633906,20.21916462,219.27,219.18,35.71717718]
[1731707634134,0.09367462,219.25,219.18,35.71717718]
[1731707634924,4.5612,219.24,219.18,35.71717718]
[1731707635424,48.07977718,219.3,219.22,35.71717718]
[1731707635613,24.68569,219.29,219.21,35.71717718]
[1731707635813,0.09367462,219.28,219.21,35.71717718]
[1731707636332,0.09367462,219.28,219.22,35.71717718]
[1731707636529,24.65417462,219.28,219.19,4.562]
[1731707636722,24.65417462,219.28,219.22,35.71717718]
[1731707636928,24.65417462,219.28,219.22,21.9673164]
[1731707637228,4.65417462,219.28,219.22,21.9673164]
[1731707637736,26.62149102,219.28,219.2,21.9673164]
[1731707637935,4.65417462,219.28,219.2,21.9673164]
[1731707638112,4.65417462,219.28,219.21,21.9673164]
[1731707638312,4.65417462,219.28,219.18,11.406]
[1731707638313,26.62149102,219.28,219.19,21.9673164]
[1731707638724,0.12549,219.25,219.17,21.9673164]
[1731707639034,21.9673164,219.24,219.17,21.9673164]
[1731707639631,21.9673164,219.22,219.15,21.9673164]
[1731707639841,4.5618,219.21,219.15,21.9673164]
[1731707640329,26.5290164,219.22,219.15,21.9673164]
[1731707641129,21.9673164,219.2,219.13,11.4084]
[1731707641336,4.5617,219.22,219.13,37.9392164]
[1731707641337,21.9673164,219.21,219.13,37.9392164]
[1731707641523,21.9673164,219.21,219.13,33.3757164]
[1731707641724,21.9673164,219.21,219.13,37.9392164]
[1731707642034,4.062,219.2,219.13,37.9392164]
[1731707642332,4.062,219.2,219.15,21.9673164]
[1731707643036,4.062,219.2,219.13,15.9719]
[1731707643037,0.21916462,219.2,219.13,21.9673164]
[1731707643821,21.9673164,219.25,219.17,21.9673164]
[1731707644144,21.9673164,219.25,219.12,21.9673164]
[1731707644145,4.5607,219.27,219.23,21.9673164]
[1731707644314,12.3626,219.3,219.25,21.9673164]
[1731707644517,16.9227,219.3,219.25,21.9673164]
[1731707645208,16.9227,219.3,219.18,11.4059]
[1731707645209,21.9673164,219.28,219.19,21.9673164]
[1731707645412,20.0,219.29,219.21,21.9673164]
[1731707646012,21.9673164,219.22,219.09,15.9751]
[1731707646209,21.4673164,219.2,219.12,21.9673164]
[1731707646514,21.4673164,219.2,219.09,15.9751]
[1731707646515,21.9673164,219.18,219.1,21.9673164]
[1731707646846,20.21916462,219.19,219.1,21.9673164]
[1731707647138,26.5297164,219.18,219.1,21.9673164]
[1731707648014,12.56716462,219.17,219.08,21.9673164]
[1731707648215,12.56716462,219.17,219.1,21.9673164]
[1731707648537,0.34465462,219.15,219.08,21.9673164]
[1731707649221,0.34465462,219.15,218.99,6.57097492]
[1731707649222,0.21916462,219.11,219.0,11.4153]
[1731707649436,0.21916462,219.11,219.03,21.9673164]
[1731707649736,0.21916462,219.11,219.0,11.4153]
[1731707649737,4.5632,219.14,219.05,21.9673164]
[1731707649926,24.5632,219.14,219.07,21.9673164]
[1731707650316,24.5632,219.14,219.0,15.9813]
[1731707650317,20.0,219.12,219.04,21.9673164]
[1731707650516,21.9673164,219.07,219.0,15.9813]
[1731707650823,21.9673164,219.05,218.97,21.9673164]
[1731707651222,21.9673164,219.03,218.95,33.3851164]
[1731707651431,4.5653,219.04,218.95,33.3851164]
[1731707651825,21.9673164,218.99,218.95,11.4178]
[1731707652022,21.9673164,219.01,218.95,11.4178]
[1731707652226,4.5653,219.04,218.91,23.11491928]
[1731707652227,21.9673164,218.97,218.91,23.11491928]
[1731707652526,21.9673164,218.97,218.9,11.4206]
[1731707652725,21.9673164,218.97,218.83,43.1758]
[1731707652726,21.9673164,218.95,218.87,21.9673164]
[1731707652924,21.9673164,218.95,218.86,21.9673164]
[1731707653123,21.9673164,218.94,218.86,21.9673164]
[1731707653335,21.9673164,218.94,218.85,11.4233]
[1731707653544,21.9673164,218.9,218.85,11.4233]
[1731707653846,21.9673164,218.92,218.85,11.4233]
[1731707654346,21.9673164,218.94,218.86,21.9673164]
[1731707654967,0.09367462,219.0,218.92,21.9673164]
[1731707655161,0.09367462,219.0,218.9,21.9673164]
[1731707655162,0.09367462,219.0,218.99,21.9673164]
[1731707656240,0.09367462,219.0,218.99,26.5337164]
[1731707656466,0.09367462,219.0,218.99,21.9673164]
[1731707656835,0.09367462,219.0,218.99,35.76521315]
[1731707657265,4.65987462,219.0,218.95,35.76521315]
[1731707657846,0.09367462,219.0,218.95,35.76521315]
[1731707658275,0.09367462,219.0,218.99,35.76521315]
[1731707661244,0.09367462,219.0,218.99,59.54209715]
[1731707661551,0.09367462,219.0,218.99,35.76521315]
[1731707662057,0.09367462,219.0,218.99,95.3073103]
[1731707664129,0.09367462,219.0,218.99,35.76521315]
[1731707667758,0.09367462,219.0,218.99,95.4328003]
[1731707668451,0.09367462,219.0,218.99,95.5328003]
[1731707669337,0.09367462,219.0,218.99,95.75196492]
[1731707670758,0.09367462,219.0,218.99,59.54209715]
[1731707671164,0.09367462,219.0,218.99,95.5582903]
[1731707671461,0.09367462,219.0,218.99,95.65196492]
[1731707671661,31.0972,219.13,219.0,62.93423862]
[1731707671840,31.0972,219.13,219.1,35.76521315]
[1731707672041,4.5631,219.15,219.1,35.76521315]
[1731707672353,35.76521315,219.11,219.03,35.76521315]
[1731707672544,4.5641,219.1,219.03,35.76521315]
[1731707673069,35.76521315,219.13,219.03,40.33071315]
[1731707673367,35.76521315,219.13,219.05,35.76521315]
[1731707673854,35.85888777,219.15,219.05,35.76521315]
[1731707674032,35.76521315,219.15,219.05,35.76521315]
[1731707674438,4.5631,219.15,219.07,35.76521315]
[1731707674841,48.56151315,219.17,219.09,35.76521315]
[1731707675056,12.7963,219.17,219.13,35.76521315]
[1731707676764,17.359,219.17,219.11,35.76521315]
[1731707676965,17.359,219.17,219.09,47.17591315]
[1731707677139,17.359,219.17,219.11,35.76521315]
[1731707677461,12.7963,219.17,219.11,35.76521315]
[1731707677650,35.76521315,219.21,219.13,35.76521315]
[1731707677861,35.76521315,219.21,219.09,15.975]
[1731707677862,35.4747,219.26,219.19,35.76521315]
[1731707678159,35.4747,219.26,219.21,35.76521315]
[1731707678963,21.96717777,219.25,219.17,11.4065]
[1731707680364,4.5612,219.24,219.18,21.96717777]
[1731707680537,35.4747,219.26,219.18,21.96717777]
[1731707680740,21.96717777,219.25,219.18,21.96717777]
[1731707681133,35.4747,219.26,219.18,21.96717777]
[1731707681370,17.2559,219.28,219.24,21.96717777]
[1731707681540,12.6954,219.28,219.24,21.96717777]
[1731707682446,17.2558,219.28,219.24,21.96717777]
[1731707682840,12.6954,219.28,219.24,21.96717777]
[1731707683036,32.16,219.32,219.26,21.96717777]
[1731707683237,32.16,219.32,219.17,0.2]
[1731707683238,7.8144,219.33,219.28,21.96717777]